bitfinex/quotes_SOLUSD_20250403
["timestamp","ask_amount","ask_price","bid_price","bid_amount"]
[1743693989737,9.16,114.03,113.99,30.67829394]
[1743693989937,9.16,114.03,114.0,30.67829394]
[1743693990462,9.16,114.03,113.99,30.67829394]
[1743693991144,39.83829394,114.03,113.98,61.38469394]
[1743693991351,30.67829394,114.02,113.98,8.7728]
[1743693991542,30.67829394,114.02,113.97,39.45249394]
[1743693991744,30.67829394,114.02,113.97,61.38799394]
[1743693991960,39.83829394,114.03,113.98,30.67829394]
[1743693992259,30.67829394,114.02,113.98,30.67829394]
[1743693992460,30.67829394,114.02,113.97,61.38799394]
[1743693992649,9.16,114.03,113.98,30.67829394]
[1743693992954,9.16,114.03,113.99,30.67829394]
[1743693993530,9.16,114.03,114.01,8.7711]
[1743693993840,328.36,114.08,114.02,30.82045551]
[1743693994038,328.36,114.08,114.04,30.67829394]
[1743693994249,328.36,114.08,114.05,30.67829394]
[1743693994653,328.36,114.08,114.04,30.67829394]
[1743693995253,135.7,114.13,114.07,30.67829394]
[1743693995579,39.83829394,114.12,114.08,8.7657]
[1743693996239,9.16,114.11,114.08,39.44399394]
[1743693996853,9.16,114.11,114.08,8.7657]
[1743693997044,39.83829394,114.11,114.08,8.7657]
[1743693997446,9.16,114.11,114.08,8.7657]
[1743693999385,30.67829394,114.17,114.11,0.14216157]
[1743693999561,39.83829394,114.17,114.12,30.67829394]
[1743694000280,9.16,114.17,114.14,30.67829394]
[1743694000486,30.67829394,114.16,114.11,30.67829394]
[1743694000785,30.67829394,114.15,114.1,67.69269394]
[1743694000988,9.16,114.17,114.1,30.6748]
[1743694000989,30.67829394,114.14,114.1,30.6748]
[1743694001157,9.16,114.17,114.12,8.7627]
[1743694001352,9.16,114.17,114.13,30.67829394]
[1743694001558,30.67829394,114.16,114.12,8.7627]
[1743694001773,30.67829394,114.15,114.12,8.7627]
[1743694002777,30.67829394,114.13,114.08,21.9139]
[1743694002991,30.67829394,114.12,114.08,52.59219394]
[1743694003286,30.67829394,114.11,114.08,8.7657]
[1743694003652,30.67829394,114.1,114.07,8.7665]
[1743694003895,9.16,114.09,114.07,8.7665]
[1743694004059,9.16,114.09,114.07,39.44479394]
[1743694004256,9.16,114.09,114.08,30.82045551]
[1743694004488,9.14,114.12,114.08,30.82045551]
[1743694004655,9.14,114.12,114.09,30.67829394]
[1743694005256,9.14,114.12,114.1,8.7642]
[1743694005955,9.14,114.12,114.1,39.44249394]
[1743694006160,9.14,114.12,114.1,8.7642]
[1743694006367,9.14,114.12,114.07,30.67829394]
[1743694006368,39.81829394,114.12,114.07,30.67829394]
[1743694006571,9.14,114.12,114.07,39.44479394]
[1743694006954,48.58099394,114.12,114.07,39.44479394]
[1743694007158,30.67829394,114.11,114.07,8.7665]
[1743694007375,30.67829394,114.1,114.07,8.7665]
[1743694007782,30.67829394,114.11,114.07,8.7665]
[1743694008275,17.9029,114.12,114.07,8.7665]
[1743694008479,30.67829394,114.1,114.07,8.7665]
[1743694008774,30.67829394,114.1,114.06,8.767]
[1743694009276,9.9,114.14,114.1,30.6748]
[1743694009476,9.9,114.14,114.11,30.67829394]
[1743694009652,40.57829394,114.14,114.1,8.7642]
[1743694010056,30.67829394,114.13,114.1,8.7642]
[1743694011275,40.57829394,114.14,114.1,8.7642]
[1743694011577,40.57829394,114.14,114.1,39.44249394]
[1743694011781,9.9,114.14,114.1,39.44249394]
[1743694011979,9.9,114.14,114.1,61.35309394]
[1743694012159,9.9,114.14,114.11,30.67829394]
[1743694012959,40.57829394,114.14,114.1,8.7642]
[1743694013278,30.67829394,114.13,114.1,8.7642]
[1743694013468,30.67829394,114.13,114.09,8.765]
[1743694013660,40.57829394,114.14,114.09,61.35579394]
[1743694014067,9.9,114.14,114.09,61.35579394]
[1743694014279,40.57829394,114.14,114.09,61.35579394]
[1743694014480,30.67829394,114.13,114.09,61.35579394]
[1743694014677,30.67829394,114.13,114.09,8.765]
[1743694014868,30.67829394,114.13,114.08,30.67829394]
[1743694014869,30.67829394,114.11,114.08,8.7656]
[1743694015066,9.9,114.14,114.08,30.68]
[1743694015266,30.67829394,114.13,114.08,61.35829394]
[1743694015475,30.67829394,114.12,114.08,30.68]
[1743694015877,30.67829394,114.11,114.08,8.7656]
[1743694016282,18.6615,114.14,114.08,8.7656]
[1743694016464,30.67829394,114.11,114.08,8.7656]
[1743694017274,30.67829394,114.1,114.07,8.7665]
[1743694017574,9.8,114.09,114.07,8.7665]
[1743694018189,9.8,114.09,114.07,39.44479394]
[1743694018392,329.6823,114.16,114.08,30.82045551]
[1743694018691,9.78,114.13,114.11,30.67829394]
[1743694019073,328.18,114.16,114.12,30.82045551]
[1743694019275,9.78,114.15,114.13,30.67829394]
[1743694019476,9.78,114.15,114.1,26.76334886]
[1743694019477,9.78,114.15,114.11,39.44169394]
[1743694019667,40.45829394,114.15,114.11,8.7634]
[1743694019870,30.67829394,114.14,114.11,8.7634]
[1743694021276,30.67829394,114.12,114.07,36.89849394]
[1743694021481,30.67829394,114.1,114.06,21.9177]
[1743694021716,9.76,114.09,114.06,30.67829394]
[1743694022795,9.76,114.09,114.07,30.67829394]
[1743694022993,9.76,114.09,114.05,61.36649394]
[1743694023809,9.76,114.09,114.05,30.6882]
[1743694024012,40.43829394,114.09,114.05,8.768]
[1743694024223,30.67829394,114.08,114.05,8.768]
[1743694024387,30.67829394,114.06,114.02,8.7703]
[1743694024586,30.67829394,114.06,114.02,39.44859394]
[1743694024812,30.67829394,114.06,114.02,8.7703]
[1743694025314,30.67829394,114.05,114.02,8.7703]
[1743694025520,9.74,114.04,114.01,8.7711]
[1743694025683,40.41829394,114.04,114.01,8.7711]
[1743694026007,9.74,114.04,114.01,8.7711]
[1743694026309,40.41829394,114.04,114.01,8.7711]
[1743694026512,9.74,114.04,114.01,8.7711]
[1743694026682,30.67829394,114.03,113.98,39.45169394]
[1743694027411,30.67829394,114.03,113.98,61.38529394]
[1743694027586,30.67829394,114.03,114.0,8.7719]
[1743694027782,9.74,114.04,114.01,30.67829394]
[1743694028004,9.74,114.04,114.02,30.67829394]
[1743694028427,9.74,114.04,114.03,30.67829394]
[1743694028915,328.18,114.07,114.06,30.67829394]
[1743694029284,9.68,114.09,114.06,30.67829394]
[1743694029486,9.68,114.09,114.05,30.67829394]
[1743694029681,40.35829394,114.09,114.06,8.7673]
[1743694029891,9.68,114.09,114.06,8.7673]
[1743694030200,9.68,114.09,114.06,39.44559394]
[1743694030400,40.35829394,114.09,114.06,8.7673]
[1743694030586,9.68,114.09,114.06,8.7673]
[1743694030787,9.68,114.09,114.06,39.44559394]
[1743694031202,9.68,114.09,114.06,61.36379394]
[1743694031914,9.68,114.09,114.06,30.6855]
[1743694032104,40.35829394,114.09,114.06,8.7673]
[1743694032409,9.68,114.09,114.06,8.7673]
[1743694032639,30.67829394,114.08,114.05,8.768]
[1743694032815,30.67829394,114.07,114.05,8.768]
[1743694032978,40.35829394,114.09,114.05,61.36649394]
[1743694033183,9.68,114.09,114.05,61.36649394]
[1743694033385,9.68,114.09,114.06,30.67829394]
[1743694033720,9.68,114.09,114.07,8.7665]
[1743694034014,30.67829394,114.13,114.08,30.67829394]
[1743694034214,358.85829394,114.14,114.09,30.67829394]
[1743694034715,30.67829394,114.13,114.09,30.67829394]
[1743694034892,30.67829394,114.12,114.07,61.36109394]
[1743694035084,30.67829394,114.11,114.07,61.36109394]
[1743694035991,0.28432314,114.13,114.07,61.36109394]
[1743694036190,30.67829394,114.11,114.07,61.36109394]
[1743694036906,30.67829394,114.11,114.07,21.9163]
[1743694037289,30.67829394,114.11,114.07,52.59459394]
[1743694037487,346.6014,114.14,114.08,30.67829394]
[1743694037488,30.67829394,114.12,114.08,30.67829394]
[1743694037806,30.67829394,114.13,114.09,30.67829394]
[1743694037988,368.51829394,114.14,114.09,30.67829394]
[1743694039124,368.51829394,114.14,114.1,8.7642]
[1743694039414,30.67829394,114.11,114.08,8.7657]
[1743694039988,346.74346157,114.14,114.08,30.6801]
[1743694039989,30.67829394,114.12,114.08,30.6801]
[1743694040193,337.98216157,114.14,114.08,30.6801]
[1743694040194,30.67829394,114.13,114.08,61.35839394]
[1743694040603,337.84,114.14,114.08,61.35839394]
[1743694040796,337.84,114.14,114.08,30.6801]
[1743694041003,30.67829394,114.13,114.1,8.7642]
[1743694041201,368.51829394,114.14,114.1,8.7642]
[1743694041627,328.18,114.14,114.11,30.67829394]
[1743694041810,328.18,114.14,114.1,30.6748]
[1743694041811,328.18,114.14,114.12,30.67829394]
[1743694041993,328.18,114.14,114.1,30.6748]
[1743694042194,30.67829394,114.13,114.1,8.7642]
[1743694042623,30.67829394,114.12,114.1,8.7642]
[1743694043228,30.67829394,114.12,114.09,8.765]
[1743694043904,30.67829394,114.13,114.09,8.765]
[1743694044111,328.18,114.14,114.09,61.35579394]
[1743694044422,328.18,114.14,114.1,30.67829394]
[1743694045014,358.85829394,114.14,114.1,30.67829394]
[1743694045215,328.18,114.14,114.1,30.67829394]
[1743694045711,328.18,114.14,114.11,30.67829394]
[1743694046726,328.18,114.14,114.1,30.67829394]
[1743694047032,6.6189,114.18,114.13,30.67829394]
[1743694047237,9.56,114.17,114.14,8.7611]
[1743694047524,40.23829394,114.17,114.14,30.664]
[1743694047735,30.67829394,114.18,114.14,30.664]
[1743694047911,40.23829394,114.18,114.14,30.664]
[1743694048235,40.23829394,114.18,114.14,61.34229394]
[1743694048437,40.23829394,114.18,114.14,30.664]
[1743694048933,9.56,114.18,114.14,30.664]
[1743694049099,9.56,114.18,114.14,61.34229394]
[1743694049298,40.23829394,114.18,114.14,30.664]
[1743694049499,9.56,114.18,114.14,8.7611]
[1743694049930,30.67829394,114.17,114.14,8.7611]
[1743694050432,30.67829394,114.16,114.14,8.7611]
[1743694050603,30.67829394,114.17,114.14,8.7611]
[1743694051839,30.67829394,114.16,114.14,8.7611]
[1743694052221,30.67829394,114.16,114.12,8.7627]
[1743694052423,18.3183,114.18,114.12,8.7627]
[1743694052424,30.67829394,114.14,114.12,8.7627]
[1743694053024,9.54,114.13,114.11,8.763]
[1743694053630,9.52,114.16,114.12,30.67829394]
[1743694053935,40.19829394,114.16,114.11,61.34989394]
[1743694054319,40.19829394,114.16,114.12,30.67829394]
[1743694054520,9.52,114.16,114.13,30.67829394]
[1743694054919,9.52,114.16,114.11,30.81376157]
[1743694054920,9.52,114.16,114.12,30.82045551]
[1743694055540,30.67829394,114.17,114.13,8.7619]
[1743694055736,40.19829394,114.17,114.13,8.7619]
[1743694055945,30.67829394,114.16,114.13,8.7619]
[1743694056248,30.67829394,114.14,114.09,8.765]
[1743694056415,30.67829394,114.13,114.09,8.765]
[1743694056744,9.52,114.12,114.09,8.765]
[1743694056909,9.52,114.12,114.09,39.44329394]
[1743694057110,9.52,114.12,114.09,61.35509394]
[1743694057941,9.52,114.12,114.1,30.67829394]
[1743694058121,9.52,114.12,114.11,30.67829394]
[1743694058522,9.52,114.12,114.11,30.82045551]
[1743694058723,9.52,114.12,114.1,30.67829394]
[1743694058920,9.52,114.12,114.09,30.6768]
[1743694059432,9.52,114.12,114.1,30.67829394]
[1743694060338,9.52,114.12,114.11,30.67829394]
[1743694060542,9.52,114.15,114.11,30.67829394]
[1743694060712,9.52,114.15,114.12,30.67829394]
[1743694061110,9.52,114.15,114.14,8.7611]
[1743694061932,40.19829394,114.17,114.14,8.7611]
[1743694062659,30.67829394,114.15,114.13,8.7616]
[1743694063516,30.67829394,114.14,114.11,8.7634]
[1743694064149,30.67829394,114.15,114.11,8.7634]
[1743694064519,30.67829394,114.15,114.11,30.672]
[1743694064920,30.67829394,114.14,114.11,30.672]
[1743694065646,40.13829394,114.15,114.11,30.672]
[1743694066052,9.46,114.15,114.11,30.672]
[1743694066231,40.13829394,114.15,114.11,30.672]
[1743694066563,30.67829394,114.13,114.11,8.7634]
[1743694066719,40.13829394,114.14,114.11,8.7634]
[1743694067220,40.13829394,114.14,114.11,61.35029394]
[1743694067221,9.46,114.14,114.11,61.35029394]
[1743694067821,328.04,114.17,114.13,30.67829394]
[1743694068142,328.04,114.17,114.14,30.67829394]
[1743694068438,328.04,114.17,114.12,18.79181043]
[1743694068619,328.04,114.17,114.13,30.67829394]
[1743694068815,328.04,114.17,114.14,30.67829394]
[1743694069538,328.04,114.17,114.15,8.7604]
[1743694070844,40.11829394,114.18,114.15,8.7604]
[1743694071230,30.67829394,114.17,114.15,8.7604]
[1743694071430,30.67829394,114.16,114.13,8.7619]
[1743694071743,30.67829394,114.14,114.11,8.7634]
[1743694072529,26.25664886,114.2,114.12,30.67829394]
[1743694072728,1.5506,114.2,114.16,30.67829394]
[1743694072939,30.67829394,114.21,114.15,0.14216157]
[1743694073134,30.67829394,114.2,114.15,30.82045551]
[1743694073652,30.67829394,114.18,114.13,7.9288]
[1743694073856,30.67829394,114.17,114.13,37.06929394]
[1743694074027,30.67829394,114.17,114.14,8.7611]
[1743694074359,8.7565,114.21,114.14,39.43939394]
[1743694074525,30.67829394,114.19,114.14,8.7611]
[1743694074728,30.67829394,114.19,114.14,39.43939394]
[1743694074940,30.67829394,114.19,114.14,8.7611]
[1743694075155,346.4954,114.22,114.14,61.34229394]
[1743694075352,30.67829394,114.19,114.14,61.34229394]
[1743694075548,30.67829394,114.19,114.16,8.7596]
[1743694076025,346.4954,114.22,114.16,8.7596]
[1743694076026,30.67829394,114.2,114.16,8.7596]
[1743694076223,337.74,114.22,114.16,61.33689394]
[1743694076440,30.67829394,114.2,114.16,8.7596]
[1743694077261,9.7,114.21,114.17,30.67829394]
[1743694077559,9.7,114.21,114.16,8.7596]
[1743694077560,40.37829394,114.21,114.16,61.33689394]
[1743694077957,328.04,114.22,114.19,30.67829394]
[1743694078330,328.04,114.22,114.2,30.67829394]
[1743694078848,328.04,114.22,114.18,18.79181043]
[1743694079045,328.04,114.22,114.21,30.67829394]
[1743694079453,328.04,114.22,114.2,30.67829394]
[1743694079827,328.04,114.22,114.21,8.7558]
[1743694080144,328.04,114.22,114.18,40.68551043]
[1743694080145,328.04,114.22,114.19,8.757]
[1743694080349,328.04,114.22,114.19,39.43529394]
[1743694080654,328.04,114.22,114.19,61.32859394]
[1743694081031,328.04,114.22,114.19,30.6503]
[1743694081432,328.04,114.22,114.19,61.32859394]
[1743694082260,328.04,114.22,114.2,30.67829394]
[1743694082637,8.7509,114.28,114.21,30.67829394]
[1743694082836,55.7535428,114.3,114.2,0.14216157]
[1743694082837,6.4256,114.3,114.25,26.0]
[1743694083151,1.5552,114.32,114.27,30.67829394]
[1743694083340,30.67829394,114.34,114.29,30.67829394]
[1743694083740,30.67829394,114.33,114.28,30.67829394]
[1743694083936,30.67829394,114.33,114.29,8.7496]
[1743694084144,9.82,114.34,114.29,39.42789394]
[1743694084459,30.67829394,114.33,114.29,8.7496]
[1743694084839,30.67829394,114.3,114.23,92.1321]
[1743694085037,30.67829394,114.29,114.24,61.31549394]
[1743694087533,40.49829394,114.33,114.28,30.67829394]
[1743694087769,9.82,114.33,114.28,30.67829394]
[1743694087933,6.2747,114.35,114.3,30.67829394]
[1743694088128,40.47829394,114.34,114.3,8.7489]
[1743694088356,9.8,114.34,114.3,30.6211]
[1743694088655,40.47829394,114.35,114.3,30.6211]
[1743694088839,30.67829394,114.35,114.3,61.29939394]
[1743694089048,368.37829394,114.36,114.31,30.67829394]
[1743694089241,56.67829394,114.32,114.24,6.2676]
[1743694089557,0.28432314,114.24,114.18,8.7581]
[1743694089852,40.63829394,114.24,114.19,30.67829394]
[1743694090056,40.63829394,114.24,114.2,8.7565]
[1743694090240,9.96,114.24,114.19,39.43559394]
[1743694090431,40.63829394,114.24,114.19,39.43559394]
[1743694090841,30.67829394,114.23,114.19,8.7573]
[1743694091158,30.67829394,114.2,114.15,30.67829394]
[1743694091358,30.67829394,114.2,114.14,0.14216157]
[1743694091359,30.67829394,114.2,114.16,56.67829394]
[1743694091756,30.67829394,114.2,114.16,30.67829394]
[1743694091950,30.67829394,114.2,114.15,30.67829394]
[1743694092140,30.67829394,114.18,114.13,38.7228]
[1743694092459,30.67829394,114.19,114.14,30.67829394]
[1743694093255,9.96,114.2,114.18,30.67829394]
[1743694093555,40.63829394,114.24,114.19,30.67829394]
[1743694093759,30.67829394,114.23,114.18,30.67829394]
[1743694094139,9.96,114.24,114.18,30.67829394]
[1743694094140,30.67829394,114.22,114.19,8.7573]
[1743694094340,18.7136,114.24,114.19,8.7573]
[1743694094341,30.67829394,114.23,114.19,8.7573]
[1743694094541,40.63829394,114.24,114.19,39.43559394]
[1743694094748,9.96,114.24,114.19,30.6506]
[1743694095058,327.74,114.27,114.21,30.67829394]
[1743694095244,368.35829394,114.27,114.22,30.67829394]
[1743694095837,337.68,114.27,114.25,30.67829394]
[1743694096051,337.68,114.27,114.26,30.67829394]
[1743694096238,17.8718,114.32,114.26,39.43019394]
[1743694096443,30.67829394,114.31,114.26,39.43019394]
[1743694097044,26.6192,114.32,114.26,39.43019394]
[1743694097240,30.67829394,114.31,114.26,8.7519]
[1743694097550,30.67829394,114.27,114.22,30.67829394]
[1743694097748,45.64008987,114.27,114.22,76.28208987]
[1743694098264,45.64008987,114.28,114.23,45.64008987]
[1743694098464,8.745,114.36,114.27,71.78225144]
[1743694098655,45.64008987,114.33,114.28,45.64008987]
[1743694098966,45.64008987,114.32,114.27,45.64008987]
[1743694099645,45.64008987,114.32,114.28,8.7504]
[1743694100048,45.64008987,114.31,114.28,8.7504]
[1743694100736,45.64008987,114.32,114.28,8.7504]
[1743694100936,45.64008987,114.32,114.28,54.39048987]
[1743694101163,45.64008987,114.33,114.28,76.26648987]
[1743694101363,45.64008987,114.32,114.28,76.26648987]
[1743694101752,45.64008987,114.32,114.28,8.7504]
[1743694102065,45.64008987,114.3,114.28,8.7504]
[1743694102263,45.64008987,114.29,114.26,8.7519]
[1743694102562,0.28432314,114.32,114.26,8.7519]
[1743694102563,45.64008987,114.28,114.26,8.7519]
[1743694102760,327.98432314,114.32,114.21,25.15384886]
[1743694102761,45.64008987,114.27,114.25,8.7524]
[1743694103271,45.64008987,114.27,114.23,8.7542]
[1743694104760,8.7504,114.28,114.23,8.7542]
[1743694104962,45.64008987,114.25,114.22,8.7546]
[1743694105176,45.92441301,114.23,114.16,8.7596]
[1743694105463,45.64008987,114.2,114.16,76.29848987]
[1743694105663,10.08,114.19,114.18,8.7581]
[1743694106264,10.08,114.19,114.17,54.39848987]
[1743694106463,10.08,114.19,114.18,45.64008987]
[1743694107149,45.64008987,114.23,114.18,45.64008987]
[1743694107357,10.04,114.25,114.22,45.64008987]
[1743694107757,10.04,114.25,114.24,54.39358987]
[1743694108066,45.64008987,114.29,114.24,76.27728987]
[1743694108272,329.31,114.31,114.25,45.64008987]
[1743694108449,10.04,114.29,114.25,45.64008987]
[1743694108767,55.68008987,114.29,114.25,45.64008987]
[1743694108967,45.64008987,114.28,114.24,8.7535]
[1743694109164,45.64008987,114.27,114.24,8.7535]
[1743694109970,45.64008987,114.26,114.23,8.7542]
[1743694110570,45.64008987,114.25,114.23,8.7542]
[1743694111760,45.64008987,114.25,114.21,45.64008987]
[1743694111966,10.0,114.25,114.21,45.64008987]
[1743694112157,45.64008987,114.24,114.2,76.28728987]
[1743694112464,55.62008987,114.24,114.2,8.7565]
[1743694112661,45.64008987,114.23,114.2,8.7565]
[1743694114269,55.62008987,114.24,114.2,8.7565]
[1743694114972,45.64008987,114.23,114.2,8.7565]
[1743694115583,45.64008987,114.22,114.2,8.7565]
[1743694115865,45.64008987,114.22,114.18,67.53438987]
[1743694115866,45.64008987,114.22,114.18,30.6524]
[1743694116069,45.64008987,114.21,114.18,30.6524]
[1743694116372,45.64008987,114.22,114.18,76.29248987]
[1743694116572,45.64008987,114.23,114.19,45.64008987]
[1743694116875,8.7531,114.25,114.18,30.6524]
[1743694116876,45.64008987,114.25,114.2,45.64008987]
[1743694117049,9.9,114.24,114.2,45.64008987]
[1743694117247,9.9,114.24,114.18,8.7581]
[1743694117248,45.64008987,114.21,114.18,8.7581]
[1743694117464,45.64008987,114.22,114.18,30.6533]
[1743694117973,45.64008987,114.22,114.18,8.7581]
[1743694119071,18.6539,114.24,114.18,8.7581]
[1743694119267,45.64008987,114.21,114.18,8.7581]
[1743694119772,30.45975394,114.22,114.18,30.45975394]
[1743694120156,30.45975394,114.21,114.17,52.35585394]
[1743694120356,30.45975394,114.22,114.17,52.35585394]
[1743694120556,30.45975394,114.21,114.17,52.35585394]
[1743694121156,30.45975394,114.22,114.17,52.35585394]
[1743694121760,30.45975394,114.21,114.17,21.8961]
[1743694121965,30.45975394,114.22,114.17,52.35585394]
[1743694122174,30.45975394,114.21,114.17,21.8961]
[1743694122659,30.45975394,114.19,114.16,8.7596]
[1743694122865,40.27975394,114.19,114.16,8.7596]
[1743694123060,30.45975394,114.17,114.13,8.7616]
[1743694123268,30.45975394,114.16,114.13,8.7616]
[1743694123779,30.45975394,114.14,114.1,8.7642]
[1743694123988,40.25975394,114.14,114.1,8.7642]
[1743694124358,30.45975394,114.11,114.04,6.0382]
[1743694124575,30.45975394,114.09,114.05,30.6882]
[1743694124761,30.45975394,114.09,114.05,8.768]
[1743694124762,30.45975394,114.08,114.05,8.768]
[1743694124961,9.8,114.09,114.05,39.22775394]
[1743694125186,9.8,114.09,114.05,61.14795394]
[1743694125695,40.25975394,114.09,114.05,39.22775394]
[1743694125860,9.8,114.09,114.06,45.78156671]
[1743694126065,9.8,114.09,114.05,76.46976671]
[1743694126676,9.8,114.09,114.06,45.78156671]
[1743694127059,9.78,114.12,114.08,45.78156671]
[1743694127290,9.78,114.12,114.09,45.78156671]
[1743694127779,9.78,114.12,114.1,8.7642]
[1743694128086,45.78156671,114.11,114.09,8.7646]
[1743694128795,45.78156671,114.1,114.09,8.7646]
[1743694129282,9.78,114.12,114.09,8.7646]
[1743694129283,45.78156671,114.11,114.09,8.7646]
[1743694129466,45.78156671,114.1,114.04,21.9218]
[1743694129657,45.78156671,114.09,114.04,67.70336671]
[1743694129858,45.78156671,114.09,114.04,76.47216671]
[1743694130071,45.78156671,114.1,114.05,45.92372828]
[1743694130278,9.78,114.12,114.06,45.78156671]
[1743694130279,45.78156671,114.11,114.06,45.78156671]
[1743694130590,55.56156671,114.12,114.07,45.78156671]
[1743694130958,45.78156671,114.1,114.06,45.78156671]
[1743694131166,45.78156671,114.09,114.04,76.47216671]
[1743694131494,45.78156671,114.08,114.04,76.47216671]
[1743694131865,45.78156671,114.09,114.04,76.47216671]
[1743694132065,45.78156671,114.09,114.05,45.78156671]
[1743694132370,45.78156671,114.09,114.04,76.47216671]
[1743694132765,45.78156671,114.08,114.04,30.6906]
[1743694132994,45.78156671,114.06,114.04,8.7688]
[1743694133174,45.78156671,114.06,114.03,8.7692]
[1743694133877,55.50156671,114.07,114.02,76.47696671]
[1743694134280,55.50156671,114.07,114.03,45.78156671]
[1743694134487,55.50156671,114.07,114.02,76.47696671]
[1743694134787,45.78156671,114.05,114.02,8.7703]
[1743694135284,45.78156671,114.03,114.0,8.7711]
[1743694135594,45.78156671,114.02,113.99,8.7726]
[1743694135762,45.78156671,114.02,113.98,76.48826671]
[1743694135964,45.78156671,114.04,113.99,45.78156671]
[1743694136168,45.78156671,114.05,114.01,45.78156671]
[1743694136472,45.78156671,114.05,114.0,45.78156671]
[1743694137072,328.1,114.06,114.0,45.78156671]
[1743694137285,45.78156671,114.05,114.0,45.78156671]
[1743694137898,328.1,114.06,114.01,30.699]
[1743694138071,328.1,114.06,114.02,45.78156671]
[1743694138273,45.78156671,114.05,114.01,8.7711]
[1743694138787,373.88156671,114.06,114.01,54.55266671]
[1743694139377,45.78156671,114.05,114.01,8.7711]
[1743694139577,45.78156671,114.05,114.01,30.699]
[1743694140390,45.78156671,114.03,114.0,8.7716]
[1743694140592,55.52156671,114.03,114.0,8.7716]
[1743694140783,55.52156671,114.03,113.99,8.7726]
[1743694140983,55.52156671,114.03,113.99,54.55416671]
[1743694141179,9.74,114.03,113.99,76.48586671]
[1743694141383,9.74,114.03,114.0,45.78156671]
[1743694141991,373.88156671,114.06,114.01,54.55266671]
[1743694142192,9.74,114.05,114.01,8.7711]
[1743694142394,9.74,114.05,114.01,30.699]
[1743694142690,9.74,114.05,114.01,76.48056671]
[1743694143397,55.52156671,114.05,114.01,30.699]
[1743694143770,45.78156671,114.03,114.01,8.7711]
[1743694143981,45.78156671,114.02,114.0,8.7715]
[1743694144182,45.78156671,114.02,113.98,8.7734]
[1743694144393,45.78156671,114.01,113.98,8.7734]
[1743694144795,45.78156671,114.02,113.98,8.7734]
[1743694145779,45.78156671,114.03,113.98,76.48856671]
[1743694146282,45.78156671,114.02,113.98,76.48856671]
[1743694146486,45.78156671,114.02,113.98,30.707]
[1743694146691,45.78156671,114.01,113.98,8.7734]
[1743694147084,45.78156671,114.02,113.98,8.7734]
[1743694147482,46.06588985,114.03,113.98,54.55496671]
[1743694147689,46.06588985,114.03,113.97,21.9344]
[1743694147889,46.06588985,114.03,113.98,45.78156671]
[1743694148083,30.84406437,114.03,113.98,30.55974123]
[1743694148992,30.55974123,114.03,113.98,30.55974123]
[1743694149380,30.55974123,114.04,113.99,30.55974123]
[1743694149784,30.55974123,114.04,114.0,8.7719]
[1743694150601,30.55974123,114.04,114.0,39.33164123]
[1743694150602,9.62,114.04,114.0,39.33164123]
[1743694150899,9.62,114.04,114.0,61.26144123]
[1743694151105,9.62,114.04,114.01,30.55974123]
[1743694152107,9.62,114.04,114.02,8.7703]
[1743694153188,40.17974123,114.04,114.02,8.7703]
[1743694153393,9.62,114.04,114.02,8.7703]
[1743694154387,9.62,114.04,114.02,39.33004123]
[1743694154586,9.62,114.04,114.03,30.55974123]
[1743694154797,328.1,114.06,114.03,30.55974123]
[1743694155106,328.1,114.06,114.02,61.25594123]
[1743694155496,328.1,114.06,114.05,30.55974123]
[1743694155695,9.56,114.09,114.05,30.55974123]
[1743694156091,40.11974123,114.09,114.04,30.55974123]
[1743694156289,30.55974123,114.09,114.05,8.768]
[1743694156484,9.54,114.09,114.05,61.24794123]
[1743694158210,30.55974123,114.11,114.06,30.55974123]
[1743694158508,9.52,114.1,114.07,39.32624123]
[1743694158692,9.52,114.1,114.07,61.24254123]
[1743694158888,328.32,114.12,114.08,30.55974123]
[1743694159109,328.32,114.12,114.07,30.6828]
[1743694159110,337.82,114.12,114.09,30.55974123]
[1743694159292,337.82,114.12,114.08,30.55974123]
[1743694160588,337.82,114.12,114.09,8.765]
[1743694161086,30.55974123,114.11,114.08,8.7653]
[1743694161286,30.55974123,114.1,114.08,8.7653]